bitfinex/quotes_SOLUSD_20250919
["timestamp","ask_amount","ask_price","bid_price","bid_amount"]
[1758281714287,0.68,241.05,241.04,32.12]
[1758281715155,15.19800231,241.08,241.04,32.12]
[1758281715348,0.68,241.07,241.04,32.12]
[1758281716057,0.68,241.06,241.04,32.12]
[1758281716665,26.0,241.05,241.04,32.12]
[1758281717281,4.1485169,241.05,241.04,46.67991715]
[1758281717477,4.1485169,241.05,241.04,48.6096262]
[1758281718356,4.1485169,241.05,241.04,47.9296262]
[1758281718685,4.1485169,241.05,241.04,45.99991715]
[1758281718989,4.1485169,241.05,241.04,46.67991715]
[1758281719161,4.1485169,241.05,241.04,45.99991715]
[1758281719684,10.37000165,241.08,241.04,45.99991715]
[1758281719685,14.51800231,241.08,241.05,0.28432314]
[1758281719975,14.51800231,241.08,241.06,32.12]
[1758281721685,15.19800231,241.08,241.06,32.12]
[1758281721883,14.51800231,241.08,241.06,32.12]
[1758281723580,14.51800231,241.08,241.06,32.8]
[1758281723777,0.1,241.09,241.07,16.4896262]
[1758281724081,0.1,241.09,241.08,45.97991715]
[1758281724289,0.1,241.09,241.08,46.65991715]
[1758281725387,0.1,241.09,241.08,48.5896262]
[1758281725889,4.24782861,241.09,241.08,47.89354291]
[1758281726461,4.24782861,241.09,241.03,2.16537881]
[1758281726681,14.61740013,241.09,241.04,46.40559401]
[1758281726857,14.61740013,241.09,241.07,0.28432314]
[1758281727062,14.61740013,241.09,241.08,32.42432314]
[1758281727674,16.56102589,241.09,241.08,32.14]
[1758281728085,15.32740013,241.09,241.08,32.14]
[1758281728287,16.56102589,241.09,241.08,32.14]
[1758281728489,19.31489991,241.09,241.04,13.87991715]
[1758281728679,19.31489991,241.09,241.06,0.28432314]
[1758281728680,27.23362576,241.07,241.06,0.28432314]
[1758281729898,31.38179848,241.07,241.06,0.28432314]
[1758281730075,31.38179848,241.07,241.06,32.40432314]
[1758281730582,31.38179848,241.07,241.06,32.12]
[1758281730891,31.38179848,241.07,241.05,32.40432314]
[1758281730892,42.4622303,241.07,241.05,32.40432314]
[1758281731185,40.51860454,241.07,241.05,32.40432314]
[1758281732266,4.14817272,241.07,241.06,15.80354291]
[1758281732588,4.14817272,241.07,241.06,0.28432314]
[1758281732776,14.51860454,241.07,241.06,32.12]
[1758281733703,15.7522303,241.07,241.03,2.16537881]
[1758281733903,1.23362576,241.05,241.03,2.16537881]
[1758281734380,4.14868901,241.04,241.03,2.16537881]
[1758281736679,14.51920683,241.06,241.03,2.16537881]
[1758281738008,14.51920683,241.06,241.03,2.85537881]
[1758281738709,14.51920683,241.06,241.04,0.69]
[1758281738899,10.37086202,241.06,241.04,0.69]
[1758281739208,10.37086202,241.06,241.03,2.16537881]
[1758281739501,10.37086202,241.06,241.04,0.69]
[1758281739675,10.37086202,241.06,241.05,0.69]
[1758281739881,10.37086202,241.06,241.03,2.16537881]
[1758281740286,10.37086202,241.06,241.04,14.56991715]
[1758281741204,10.37086202,241.06,241.04,13.87991715]
[1758281741510,0.71,241.05,241.03,2.16537881]
[1758281741831,26.0,241.03,241.0,1.0]
[1758281741972,1.23362576,241.01,241.0,1.0]
[1758281742597,1.23362576,241.01,241.0,3.16674828]
[1758281742781,6.09283118,241.01,241.0,3.16674828]
[1758281742984,6.09283118,241.01,241.0,1e-08]
[1758281743176,6.09283118,241.01,240.82,10.38092712]
[1758281743177,26.0,240.98,240.91,13.59559401]
[1758281743380,1.23362576,240.94,240.93,0.69]
[1758281743582,1.23362576,240.96,240.93,0.69]
[1758281744202,1.23362576,240.97,240.93,0.69]
[1758281744500,14.5252324,240.96,240.93,0.69]
[1758281744998,1.23362576,240.95,240.91,0.28432314]
[1758281745404,27.23362576,240.93,240.9,13.59559401]
[1758281745878,1.23362576,240.92,240.87,13.59559401]
[1758281746077,1.94362576,240.92,240.88,0.28432314]
[1758281746281,1.94362576,240.92,240.87,13.59559401]
[1758281746282,1.23362576,240.91,240.87,13.59559401]
[1758281746492,14.52945327,240.89,240.86,13.59559401]
[1758281746900,16.47307903,240.89,240.86,13.59559401]
[1758281747114,15.76307903,240.89,240.86,13.59559401]
[1758281747278,15.76307903,240.89,240.85,0.14216157]
[1758281747988,14.52945327,240.89,240.85,0.28432314]
[1758281749199,10.37818091,240.89,240.85,0.28432314]
[1758281749516,10.37818091,240.89,240.87,0.28432314]
[1758281750102,14.52945327,240.89,240.87,0.28432314]
[1758281750731,33.924893,241.01,240.89,13.87991715]
[1758281751026,33.214893,241.01,240.96,1.23362576]
[1758281751193,20.74632418,241.01,240.96,1.92362576]
[1758281751393,26.0,240.98,240.96,1.92362576]
[1758281751615,20.74632418,241.01,240.96,0.69]
[1758281751788,20.74632418,241.01,240.91,0.28432314]
[1758281751789,10.37344398,241.0,240.95,1.23362576]
[1758281751992,10.37344398,241.0,240.95,0.28432314]
[1758281752192,11.08344398,241.0,240.95,0.28432314]
[1758281752814,26.0,240.97,240.9,0.69]
[1758281753006,26.0,240.97,240.91,13.87991715]
[1758281754099,14.5252324,240.96,240.92,0.69]
[1758281754299,14.5252324,240.96,240.91,13.87991715]
[1758281755421,10.375166,240.96,240.91,14.58991715]
[1758281756116,0.7,240.95,240.91,13.87991715]
[1758281756721,10.375166,240.96,240.91,14.52991715]
[1758281758419,0.71,240.95,240.86,0.65]
[1758281758626,10.375166,240.96,240.91,1.23362576]
[1758281758812,10.375166,240.96,240.92,0.93432314]
[1758281759012,10.375166,240.96,240.93,0.65]
[1758281759212,10.375166,240.96,240.94,0.65]
[1758281759410,10.375166,240.96,240.92,0.93432314]
[1758281759616,10.375166,240.96,240.92,0.28432314]
[1758281760608,10.375166,240.96,240.92,0.93432314]
[1758281761624,10.375166,240.96,240.92,0.28432314]
[1758281761929,10.375166,240.96,240.92,0.65]
[1758281763341,0.71,240.95,240.91,0.28432314]
[1758281763506,0.71,240.94,240.85,13.59559401]
[1758281763830,1.94362576,240.93,240.87,13.59559401]
[1758281764143,0.71,240.92,240.85,13.59559401]
[1758281764434,1.94362576,240.92,240.85,15.47921977]
[1758281764906,1.94362576,240.92,240.86,0.28432314]
[1758281765107,14.52824706,240.91,240.86,0.28432314]
[1758281765406,0.71,240.9,240.86,0.28432314]
[1758281766122,1.94362576,240.9,240.86,0.28432314]
[1758281766624,26.0,240.88,240.83,0.65]
[1758281766801,26.0,240.88,240.83,0.93432314]
[1758281767000,26.0,240.88,240.83,0.28432314]
[1758281767201,14.53065968,240.87,240.83,0.28432314]
[1758281767403,14.53065968,240.87,240.86,0.28432314]
[1758281767616,14.53065968,240.87,240.83,0.28432314]
[1758281767812,14.53065968,240.87,240.86,0.28432314]
[1758281769717,10.37904263,240.87,240.86,0.28432314]
[1758281769921,10.37904263,240.87,240.84,0.28432314]
[1758281770225,10.37904263,240.87,240.86,0.28432314]
[1758281772218,11.08904263,240.87,240.81,41.86997245]
[1758281772415,1.23362576,240.86,240.81,41.86997245]
[1758281772824,0.71,240.85,240.81,41.86997245]
[1758281773130,0.71,240.84,240.81,41.86997245]
[1758281773315,33.41362576,240.86,240.81,41.86997245]
[1758281773520,0.71,240.85,240.81,41.86997245]
[1758281774032,15.24246968,240.84,240.81,41.86997245]
[1758281774353,0.71,240.83,240.81,41.86997245]
[1758281774925,0.71,240.82,240.81,41.86997245]
[1758281775119,14.53246968,240.84,240.81,41.86997245]
[1758281775437,0.71,240.82,240.81,41.86997245]
[1758281775938,4.86247902,240.82,240.81,41.86997245]
[1758281776314,15.24367659,240.82,240.77,0.28432314]
[1758281776618,14.53367659,240.82,240.77,0.93432314]
[1758281777328,15.24367659,240.82,240.77,0.93432314]
[1758281777515,36.00607173,240.82,240.77,0.28432314]
[1758281777918,1.94362576,240.81,240.77,0.28432314]
[1758281778118,0.71,240.81,240.77,0.28432314]
[1758281778326,1.23362576,240.79,240.77,0.28432314]
[1758281778522,35.29607173,240.82,240.77,0.28432314]
[1758281778723,1.23362576,240.8,240.77,0.28432314]
[1758281778929,1.94362576,240.8,240.77,0.28432314]
[1758281779124,0.71,240.79,240.77,0.28432314]
[1758281779528,1.23362576,240.8,240.77,0.28432314]
[1758281779731,33.39362576,240.81,240.77,0.28432314]
[1758281780054,33.39362576,240.81,240.78,0.65]
[1758281780055,14.53488372,240.8,240.78,0.65]
[1758281780221,14.53488372,240.8,240.74,0.65]
[1758281780542,14.53488372,240.8,240.74,1.88362576]
[1758281780916,14.53488372,240.8,240.77,0.28432314]
[1758281781139,10.3820598,240.8,240.77,0.28432314]
[1758281781324,4.15247902,240.82,240.8,13.59559401]
[1758281781645,32.18,240.91,240.82,13.59559401]
[1758281781834,32.18,240.91,240.85,0.28432314]
[1758281782147,1.23362576,240.89,240.85,0.28432314]
[1758281782336,26.0,240.87,240.83,0.28432314]
[1758281782734,1.94362576,240.88,240.83,0.28432314]
[1758281783243,15.76428544,240.87,240.83,0.28432314]
[1758281783441,1.23362576,240.84,240.79,13.59559401]
[1758281783644,1.23362576,240.83,240.78,0.65]
[1758281783851,26.0,240.82,240.79,13.59559401]
[1758281784034,26.0,240.82,240.8,0.14216157]
[1758281784438,26.0,240.82,240.8,0.28432314]
[1758281784932,26.0,240.82,240.75,1.23362576]
[1758281785253,14.53428012,240.81,240.77,0.14216157]
[1758281785627,14.53428012,240.81,240.77,0.81216157]
[1758281785827,14.53428012,240.81,240.77,0.14216157]
[1758281786050,15.24428012,240.81,240.77,0.28432314]
[1758281787053,0.71,240.8,240.77,0.28432314]
[1758281787255,14.53428012,240.81,240.77,0.28432314]
[1758281787633,0.71,240.8,240.77,0.14216157]
[1758281787854,16.46743946,240.81,240.77,0.14216157]
[1758281788155,0.71,240.79,240.77,0.14216157]
[1758281788356,0.71,240.79,240.76,0.28432314]
[1758281788852,4.15316886,240.78,240.76,0.28432314]
[1758281791364,4.15316886,240.78,240.71,0.1]
[1758281791365,2.64315934,240.77,240.71,13.69559401]
[1758281791861,69.41509469,240.78,240.72,0.67]
[1758281792037,35.30193535,240.78,240.73,1.93315934]
[1758281792232,35.30193535,240.78,240.74,0.67]
[1758281792632,35.30193535,240.78,240.73,1.93315934]
[1758281792832,35.30193535,240.78,240.73,2.60315934]
[1758281793150,36.01193535,240.78,240.73,0.67]
[1758281794268,26.0,240.75,240.71,0.1]
[1758281794965,0.71,240.74,240.71,0.1]
[1758281795163,14.53850626,240.74,240.71,0.1]
[1758281795369,15.24850626,240.74,240.71,0.1]
[1758281795867,0.71,240.73,240.71,0.1]
[1758281796369,14.53850626,240.74,240.71,0.1]
[1758281796571,16.4716656,240.74,240.71,0.1]
[1758281796894,0.71,240.72,240.71,0.1]
[1758281797179,4.86420405,240.72,240.71,0.1]
[1758281797475,0.71,240.81,240.73,0.28432314]
[1758281797688,2.60315934,240.8,240.78,1.93315934]
[1758281797970,0.71,240.81,240.77,1.93315934]
[1758281798151,26.0,240.8,240.75,0.28432314]
[1758281798357,26.0,240.8,240.77,1.93315934]
[1758281798660,26.0,240.79,240.78,1.93315934]
[1758281799056,26.0,240.79,240.75,0.28432314]
[1758281799359,1.93315934,240.77,240.71,0.77]
[1758281799664,1.93315934,240.76,240.71,0.38432314]
[1758281799862,26.0,240.75,240.71,0.1]
[1758281800060,26.0,240.75,240.71,0.77]
[1758281801356,15.24850626,240.74,240.71,0.1]
[1758281801560,17.1816656,240.74,240.71,0.1]
[1758281801760,17.1816656,240.74,240.71,1e-08]
[1758281801761,1.93315934,240.72,240.71,1e-08]
[1758281802151,60.90315934,240.72,240.71,1e-08]
[1758281803272,65.05736339,240.72,240.71,1e-08]
[1758281803458,67.87335074,240.72,240.71,1e-08]
[1758281803652,35.53335074,240.72,240.71,1e-08]
[1758281803852,67.87335074,240.72,240.71,1e-08]
[1758281804351,65.9401914,240.72,240.71,1e-08]
[1758281804657,65.11736339,240.72,240.71,1e-08]
[1758281805056,32.79736339,240.72,240.71,1e-08]
[1758281805258,65.11736339,240.72,240.71,1e-08]
[1758281805647,62.47420405,240.72,240.71,1e-08]
[1758281805871,64.40736339,240.72,240.71,1e-08]
[1758281806250,65.11736339,240.72,240.71,1e-08]
[1758281806778,67.85228226,240.72,240.71,1e-08]
[1758281807365,32.79736339,240.72,240.71,1e-08]
[1758281807572,65.11736339,240.72,240.71,1e-08]
[1758281807777,67.85263087,240.72,240.71,1e-08]
[1758281807980,67.97479244,240.72,240.71,1e-08]
[1758281808971,33.7416331,240.72,240.71,1e-08]
[1758281809156,35.67479244,240.72,240.71,1e-08]
[1758281809359,67.99479244,240.72,240.71,1e-08]
[1758281809967,67.14263087,240.72,240.71,1e-08]
[1758281810468,65.91947153,240.72,240.71,1e-08]
[1758281810770,67.85263087,240.72,240.71,1e-08]
[1758281811362,34.82263087,240.72,240.71,1e-08]
[1758281811565,67.85263087,240.72,240.71,1e-08]
[1758281812078,35.53263087,240.72,240.71,1e-08]
[1758281812285,67.85263087,240.72,240.71,1e-08]
[1758281812662,35.53263087,240.72,240.71,1e-08]
[1758281813090,38.38736339,240.72,240.71,1e-08]
[1758281813260,36.45420405,240.72,240.71,1e-08]
[1758281813466,4.15420405,240.72,240.71,1e-08]
[1758281813660,38.38736339,240.72,240.71,1e-08]
[1758281814787,41.12382148,240.72,240.71,1e-08]
[1758281815491,41.12404636,240.72,240.71,1e-08]
[1758281817676,41.10404636,240.72,240.71,1e-08]
[1758281817876,38.36736339,240.72,240.71,1e-08]
[1758281818081,39.17088963,240.72,240.71,1e-08]
[1758281818266,41.10404897,240.72,240.71,1e-08]
[1758281818970,67.10404897,240.72,240.71,1e-08]
[1758281819878,41.08404897,240.72,240.71,1e-08]
[1758281820893,26.0,240.69,240.61,0.1]
[1758281821067,1.93315934,240.64,240.61,0.1]
[1758281822885,4.1557578,240.63,240.61,0.79]
[1758281823196,4.1557578,240.63,240.62,0.69]
[1758281824299,4.1557578,240.63,240.61,0.1]
[1758281824485,14.54464832,240.64,240.61,0.1]
[1758281824803,16.47780766,240.64,240.62,0.69]
[1758281825006,14.54464832,240.64,240.62,0.69]
[1758281825189,14.54464832,240.64,240.63,0.69]
[1758281826004,14.54464832,240.64,240.61,0.1]
[1758281826307,14.54464832,240.64,240.61,0.79]
[1758281826514,10.38906322,240.64,240.61,0.1]
[1758281827379,10.38906322,240.64,240.61,0.79]
[1758281827993,10.38906322,240.64,240.61,0.1]
[1758281828596,14.54464832,240.64,240.61,0.1]
[1758281830284,10.38906322,240.64,240.61,0.1]
[1758281830808,42.62906322,240.64,240.61,0.1]
[1758281831314,10.38906322,240.64,240.61,0.1]
[1758281832717,14.54464832,240.64,240.61,0.1]
[1758281833597,14.54464832,240.64,240.61,0.79]
[1758281833800,14.54464832,240.64,240.62,0.69]
[1758281834193,14.54464832,240.64,240.61,0.1]
[1758281834787,10.38906322,240.64,240.61,0.1]
[1758281836008,11.05906322,240.64,240.61,0.1]
[1758281836997,10.38906322,240.64,240.61,0.1]
[1758281837196,10.38906322,240.64,240.62,0.97432314]
[1758281837398,10.38906322,240.64,240.63,0.69]
[1758281837709,10.38906322,240.64,240.62,0.28432314]
[1758281838712,11.05906322,240.64,240.62,0.28432314]
[1758281839305,0.67,240.63,240.61,0.1]
[1758281839813,0.67,240.62,240.61,0.1]
[1758281839986,4.82593051,240.62,240.61,0.1]
[1758281840186,4.15593051,240.62,240.61,0.79]
[1758281840391,4.15593051,240.62,240.61,0.1]
[1758281840727,4.15593051,240.62,240.61,1.07432314]
[1758281840902,4.15593051,240.62,240.61,0.38432314]
[1758281841108,4.15593051,240.62,240.61,1.07432314]
[1758281841414,4.15593051,240.62,240.61,0.38432314]
[1758281841990,4.15523975,240.66,240.61,1.07432314]
[1758281842189,4.15523975,240.66,240.64,0.28432314]
[1758281842687,4.15523975,240.66,240.64,0.97432314]
[1758281843110,4.15523975,240.66,240.64,0.28432314]
[1758281843497,4.15523975,240.66,240.64,0.97432314]
[1758281843810,0.67,240.65,240.64,0.28432314]
[1758281843993,4.65541242,240.65,240.64,0.28432314]
[1758281850220,5.31541242,240.65,240.64,0.28432314]
[1758281851014,4.65541242,240.65,240.64,0.28432314]
[1758281853602,5.31541242,240.65,240.64,0.28432314]
[1758281853795,4.65541242,240.65,240.64,0.28432314]
[1758281855720,15.04394348,240.65,240.63,0.28432314]
[1758281856633,15.04394348,240.65,240.63,0.95432314]
[1758281856806,15.04394348,240.65,240.63,0.28432314]
[1758281860635,0.5,240.65,240.64,14.54991715]
[1758281861956,4.65541242,240.65,240.64,14.54991715]
[1758281862325,4.65541242,240.65,240.64,15.78816016]
[1758281865054,0.5,240.65,240.64,15.78816016]
[1758281866417,4.65541242,240.65,240.64,14.54991715]
[1758281866623,4.65541242,240.65,240.64,15.78816016]
[1758281868649,0.5,240.65,240.64,15.78816016]
[1758281869243,4.65541242,240.65,240.64,14.54991715]
[1758281869448,4.65541242,240.65,240.64,15.78816016]
[1758281869649,0.5,240.65,240.64,15.93032173]
[1758281869842,4.15454923,240.7,240.65,13.87991715]
[1758281870025,4.15454923,240.7,240.68,1.23824301]
[1758281870854,4.15437663,240.71,240.68,1.23824301]
[1758281871748,4.81437663,240.71,240.68,1.23824301]
[1758281872350,15.20031821,240.71,240.68,1.23824301]
[1758281873153,0.66,240.7,240.68,13.59559401]
[1758281873848,4.15437663,240.71,240.7,13.87991715]
[1758281874035,4.15437663,240.71,240.7,15.11816016]
[1758281874458,4.15420405,240.72,240.7,15.11816016]
[1758281875254,4.15420405,240.72,240.7,13.87991715]
[1758281876638,4.15420405,240.72,240.7,1.23824301]
[1758281876960,4.15420405,240.72,240.7,1.89824301]
[1758281877861,4.15420405,240.72,240.71,1.23824301]
[1758281879452,4.15403148,240.73,240.71,1.23824301]
[1758281880649,14.53878245,240.74,240.71,1.23824301]
[1758281880829,0.66,240.73,240.71,1.23824301]
[1758281881750,4.81403148,240.73,240.72,1.23824301]
[1758281882063,15.19911019,240.73,240.71,1.23824301]
[1758281883131,15.19911019,240.73,240.72,1.23824301]
[1758281883132,14.53911019,240.73,240.72,1.23824301]
[1758281883539,4.81403148,240.73,240.72,1.23824301]
[1758281883940,4.81403148,240.73,240.67,32.08]
[1758281884244,4.81403148,240.73,240.66,12.47582808]
[1758281884245,0.66,240.72,240.66,12.47582808]
[1758281884463,0.66,240.71,240.66,13.71407109]
[1758281884760,0.66,240.7,240.66,1.23824301]
[1758281884957,4.15489446,240.68,240.66,1.23824301]
[1758281885250,4.81489446,240.68,240.66,1.23824301]
[1758281885862,4.15489446,240.68,240.66,1.23824301]
[1758281886038,4.81489446,240.68,240.66,1.23824301]
[1758281886240,0.66,240.67,240.64,13.87991715]
[1758281886441,0.66,240.67,240.66,1.23824301]
[1758281886847,14.54213062,240.68,240.66,1.23824301]
[1758281887038,14.53971418,240.72,240.66,1.23824301]
[1758281887249,0.66,240.68,240.66,1.23824301]
[1758281888064,0.66,240.68,240.67,1.23824301]
[1758281888264,15.20213062,240.68,240.66,1.23824301]
[1758281888454,0.66,240.67,240.66,1.23824301]
[1758281888962,14.54213062,240.68,240.66,1.23824301]
[1758281889157,14.54213062,240.68,240.67,1.23824301]
[1758281889158,15.20213062,240.68,240.67,1.23824301]
[1758281891351,14.54213062,240.68,240.67,1.23824301]
[1758281892465,0.66,240.68,240.66,1.23824301]
[1758281893866,4.1550671,240.67,240.66,1.23824301]
[1758281895450,4.1550671,240.67,240.64,13.87991715]
[1758281895775,14.54273486,240.67,240.66,1.23824301]
[1758281896668,0.66,240.68,240.67,13.87991715]
[1758281896978,0.66,240.74,240.68,0.28432314]
[1758281897142,0.66,240.74,240.71,0.28432314]
[1758281897339,0.66,240.74,240.73,1.23824301]
[1758281898282,4.81385893,240.74,240.73,1.23824301]
[1758281900074,4.15385893,240.74,240.73,1.23824301]
[1758281900774,4.15385893,240.74,240.73,1.52256615]
[1758281904264,4.15385893,240.74,240.73,0.28432314]
[1758281904571,4.15385893,240.74,240.73,1.52256615]
[1758281905363,4.81385893,240.74,240.73,0.28432314]
[1758281905679,4.81385893,240.74,240.73,1.52256615]
[1758281906783,4.15385893,240.74,240.73,1.52256615]
[1758281907664,4.15385893,240.74,240.73,15.81816016]
[1758281907864,4.15385893,240.74,240.73,16.51277409]
[1758281908688,10.38389275,240.76,240.73,15.81277409]
[1758281908890,11.04389275,240.76,240.73,15.81277409]
[1758281909270,11.04389275,240.76,240.75,2.21718008]
[1758281909466,13.79646941,240.76,240.75,2.21718008]
[1758281910187,17.28998328,240.76,240.75,2.21718008]
[1758281910371,6.90609053,240.76,240.75,15.81277409]
[1758281910682,0.66,240.85,240.76,0.28432314]
[1758281910859,2.75311218,240.84,240.79,0.28432314]
[1758281911064,2.75311218,240.83,240.8,0.7]
[1758281911260,6.98743369,240.84,240.79,0.28432314]
[1758281911479,0.66,240.83,240.79,0.98432314]
[1758281912074,0.66,240.82,240.81,0.28432314]
[1758281912273,15.19367659,240.82,240.8,0.28432314]
[1758281912474,2.75311218,240.81,240.8,0.28432314]
[1758281912891,3.41311218,240.81,240.8,0.28432314]
[1758281915271,17.9473923,240.81,240.79,0.28432314]
[1758281915471,3.41311218,240.8,240.79,0.28432314]
[1758281916394,7.5659361,240.8,240.79,0.28432314]
[1758281917178,6.9059361,240.8,240.79,2.21718008]
[1758281918001,7.5659361,240.8,240.79,2.21718008]
[1758281918302,17.9479959,240.8,240.79,2.21718008]
[1758281918500,17.2879959,240.8,240.79,2.21718008]
[1758281918698,17.2879959,240.8,240.79,0.28432314]
[1758281918890,17.2879959,240.8,240.79,2.21718008]
[1758281919199,17.2879959,240.8,240.79,0.28432314]
[1758281919598,17.9479959,240.8,240.79,0.28432314]
[1758281919792,6.9059361,240.8,240.79,16.51277409]
[1758281920099,6.90260198,240.83,240.79,2.91718008]
[1758281920303,6.90260198,240.83,240.82,2.21718008]
[1758281920977,4.1523066,240.83,240.82,2.21718008]
[1758281921176,4.1523066,240.83,240.82,2.91718008]
[1758281921377,4.1523066,240.83,240.82,16.51277409]
[1758281921594,6.32743369,240.84,240.83,13.87991715]
[1758281921797,6.32743369,240.84,240.83,16.51277409]
[1758281921985,10.47956788,240.84,240.83,16.51277409]
[1758281922282,10.47956788,240.84,240.83,15.81277409]
[1758281922901,10.47956788,240.84,240.83,2.21718008]
[1758281923277,11.13956788,240.84,240.83,0.28432314]
[1758281923488,13.88665005,240.84,240.83,0.28432314]
[1758281923900,24.26698554,240.84,240.81,1.93285694]
[1758281924111,0.66,240.83,240.81,1.93285694]
[1758281924399,0.66,240.82,240.78,43.19956788]
[1758281924603,1.93285694,240.81,240.78,11.13956788]
[1758281924784,2.74647299,240.83,240.78,11.13956788]
[1758281924785,2.59285694,240.8,240.78,11.13956788]
[1758281924992,0.66,240.79,240.75,0.28432314]
[1758281925901,0.66,240.79,240.74,15.52845095]
[1758281925902,14.53669476,240.77,240.74,15.52845095]
[1758281926093,14.53669476,240.77,240.75,0.28432314]
[1758281926816,15.19669476,240.77,240.75,0.28432314]
[1758281927197,14.53669476,240.77,240.75,0.28432314]
[1758281927919,10.3833534,240.77,240.75,0.28432314]
[1758281929406,0.66,240.76,240.74,0.28432314]
[1758281930027,0.66,240.75,240.74,0.28432314]
[1758281930211,0.66,240.75,240.74,0.14216157]
[1758281930530,0.66,240.75,240.7,1.93285694]
[1758281930819,26.66,240.74,240.69,15.52845095]
[1758281930999,26.66,240.74,240.7,0.28432314]
[1758281931000,0.66,240.73,240.7,0.28432314]
[1758281931321,4.15437663,240.71,240.7,0.28432314]
[1758281931634,15.20031821,240.71,240.63,0.7]
[1758281931802,15.20031821,240.71,240.66,1.93285694]
[1758281931995,0.66,240.7,240.67,2.07501851]
[1758281932199,0.66,240.7,240.68,0.14216157]
[1758281932417,14.54031821,240.71,240.68,0.14216157]
[1758281932627,14.54031821,240.71,240.7,0.14216157]
[1758281933698,11.04594158,240.71,240.7,0.14216157]
[1758281934846,11.04594158,240.71,240.69,0.28432314]
[1758281935800,15.20031821,240.71,240.69,0.28432314]
[1758281936422,0.69,240.7,240.69,0.28432314]
[1758281936626,14.54031821,240.71,240.69,0.28432314]
[1758281936799,14.54031821,240.71,240.7,0.28432314]
[1758281937000,15.23031821,240.71,240.7,0.28432314]
[1758281937213,15.23031821,240.71,240.64,45.65559401]
[1758281937400,0.69,240.7,240.67,0.28432314]
[1758281937602,0.69,240.69,240.67,0.28432314]
[1758281937802,4.15489446,240.68,240.67,0.28432314]
[1758281938325,4.15489446,240.68,240.67,2.21718008]
[1758281940033,15.2309223,240.7,240.66,1.93285694]
[1758281940234,14.5409223,240.7,240.68,2.21718008]
[1758281940439,0.69,240.69,240.68,2.21718008]
[1758281940617,0.69,240.69,240.68,0.28432314]
[1758281941639,4.15472184,240.69,240.68,0.28432314]
[1758281942545,4.15472184,240.69,240.64,14.26559401]
[1758281942712,0.69,240.68,240.63,45.99991715]
[1758281942913,0.69,240.67,240.64,1.93285694]
[1758281943617,4.15523975,240.66,240.64,1.93285694]
[1758281944835,14.54333914,240.66,240.63,13.87991715]
[1758281945026,14.54333914,240.66,240.63,15.81277409]
[1758281945227,14.54333914,240.66,240.64,1.93285694]
[1758281948530,15.23152644,240.69,240.64,1.93285694]
[1758281948724,0.69,240.68,240.64,1.93285694]
[1758281948919,0.69,240.67,240.64,1.93285694]
[1758281949628,16.47438338,240.69,240.62,2.16917562]
[1758281949835,26.0,240.67,240.66,1.93285694]
[1758281950013,0.69,240.68,240.66,2.21718008]
[1758281950206,0.69,240.68,240.67,2.21718008]
[1758281950510,4.84489446,240.68,240.67,2.21718008]
[1758281951329,4.15489446,240.68,240.67,2.21718008]
[1758281952620,0.69,240.68,240.67,0.28432314]
[1758281953911,14.54152644,240.69,240.67,0.28432314]
[1758281954316,15.23152644,240.69,240.67,0.28432314]
[1758281954515,10.3868046,240.69,240.67,0.28432314]
[1758281955420,4.15454923,240.7,240.68,2.21718008]
[1758281955626,4.15454923,240.7,240.69,2.21718008]
[1758281955834,4.15454923,240.7,240.69,2.88718008]
[1758281956035,4.15454923,240.7,240.69,2.21718008]
[1758281957540,4.15454923,240.7,240.69,0.28432314]
[1758281957742,0.69,240.7,240.69,0.28432314]
[1758281957924,7.02509684,240.7,240.69,0.28432314]
[1758281959829,11.17964607,240.7,240.69,0.28432314]
[1758281960024,10.48964607,240.7,240.69,0.28432314]
[1758281960221,11.17964607,240.7,240.69,0.28432314]
[1758281962940,4.84454923,240.7,240.69,0.28432314]
[1758281966841,4.81454923,240.7,240.69,0.28432314]
[1758281967349,15.2009223,240.7,240.67,0.28432314]
[1758281968326,4.64743601,240.69,240.64,2.16954669]
[1758281968643,0.66,240.68,240.65,0.28432314]
[1758281968840,0.66,240.68,240.64,2.16954669]
[1758281968841,1.89810448,240.67,240.64,2.16954669]
[1758281969150,4.81523975,240.66,240.64,2.16954669]
[1758281969355,11.04466429,240.66,240.64,2.16954669]
[1758281969857,0.66,240.65,240.64,2.16954669]
[1758281970346,4.81541242,240.65,240.64,2.16954669]
[1758281972124,7.56611825,240.65,240.64,2.16954669]
[1758281973956,17.95464931,240.65,240.61,0.1]